[Event "Early-Titled-Tuesday-Blitz-April-02-2024"]
[Site "Chess.com"]
[Date "2024.04.02"]
[Round "6"]
[White "Tonychess32"]
[Black "djano"]
[Result "1-0"]
[WhiteElo "2553"]
[BlackElo "2657"]
[TimeControl "180+1"]
[EndTime "9:06:50 PDT"]
[Termination "Tonychess32 won by checkmate"]

1. d4 {[%clk 0:03:00.9]} 1... Nf6 {[%clk 0:02:58.5]} 2. Bf4 {[%clk 0:02:59.4]}
2... c5 {[%clk 0:02:53]} 3. c3 {[%clk 0:02:59.4]} 3... Qb6 {[%clk 0:02:51.9]} 4.
Bc1 {[%clk 0:02:32.2]} 4... g6 {[%clk 0:02:48.7]} 5. Nf3 {[%clk 0:02:32.4]} 5...
Bg7 {[%clk 0:02:48.5]} 6. Na3 {[%clk 0:02:31.5]} 6... d5 {[%clk 0:02:47.6]} 7.
e3 {[%clk 0:02:24.1]} 7... O-O {[%clk 0:02:46.5]} 8. Be2 {[%clk 0:02:23.8]} 8...
Nc6 {[%clk 0:02:41.7]} 9. O-O {[%clk 0:02:23.8]} 9... Bf5 {[%clk 0:02:39.1]} 10.
Nc2 {[%clk 0:02:21.4]} 10... Rfe8 {[%clk 0:02:35.7]} 11. Nh4 {[%clk 0:02:07.1]}
11... Bd7 {[%clk 0:02:30.1]} 12. Nf3 {[%clk 0:01:53.2]} 12... Ne4 {[%clk
0:02:28]} 13. Nce1 {[%clk 0:01:50]} 13... e5 {[%clk 0:02:25.2]} 14. dxe5 {[%clk
0:01:48.1]} 14... Nxe5 {[%clk 0:02:26.1]} 15. Qxd5 {[%clk 0:01:38.3]} 15... Ng4
{[%clk 0:02:14.9]} 16. Qb3 {[%clk 0:01:33.5]} 16... Qc7 {[%clk 0:02:12]} 17. h3
{[%clk 0:01:32]} 17... Nh6 {[%clk 0:01:57.3]} 18. Nd2 {[%clk 0:01:20.7]} 18...
Ng5 {[%clk 0:01:49.1]} 19. Nef3 {[%clk 0:01:13.8]} 19... Nxh3+ {[%clk
0:01:45.4]} 20. gxh3 {[%clk 0:01:13.8]} 20... Bxh3 {[%clk 0:01:46.3]} 21. Re1
{[%clk 0:01:06.5]} 21... Ng4 {[%clk 0:01:44.8]} 22. Bf1 {[%clk 0:00:59.5]} 22...
Bxf1 {[%clk 0:01:34.8]} 23. Nxf1 {[%clk 0:00:59.6]} 23... Qc6 {[%clk 0:01:28.7]}
24. e4 {[%clk 0:00:25.6]} 24... Rxe4 {[%clk 0:01:24.1]} 25. Rxe4 {[%clk
0:00:20.6]} 25... Qxe4 {[%clk 0:01:25]} 26. Qd1 {[%clk 0:00:15.7]} 26... Bf6
{[%clk 0:01:16.2]} 27. Ng3 {[%clk 0:00:15.8]} 27... Qc6 {[%clk 0:01:15.1]} 28.
Bg5 {[%clk 0:00:13.6]} 28... Rd8 {[%clk 0:00:57.5]} 29. Qe2 {[%clk 0:00:13.5]}
29... Re8 {[%clk 0:00:58.1]} 30. Qd3 {[%clk 0:00:12]} 30... c4 {[%clk
0:00:53.3]} 31. Qd1 {[%clk 0:00:08.9]} 31... Rd8 {[%clk 0:00:52]} 32. Qe2 {[%clk
0:00:08.2]} 32... Re8 {[%clk 0:00:51.9]} 33. Qd1 {[%clk 0:00:05.3]} 33... h6
{[%clk 0:00:31.9]} 34. Bxf6 {[%clk 0:00:04.9]} 34... Qxf6 {[%clk 0:00:32.8]} 35.
Kg2 {[%clk 0:00:04.5]} 35... Rd8 {[%clk 0:00:30.3]} 36. Qe2 {[%clk 0:00:04.3]}
36... Rd3 {[%clk 0:00:30.5]} 37. Nd4 {[%clk 0:00:03.2]} 37... h5 {[%clk
0:00:25.8]} 38. Re1 {[%clk 0:00:03.2]} 38... Kh7 {[%clk 0:00:22]} 39. Ne4 {[%clk
0:00:02.9]} 39... Qh4 {[%clk 0:00:21.7]} 40. Nf3 {[%clk 0:00:02.6]} 40... Qd8
{[%clk 0:00:15.9]} 41. Neg5+ {[%clk 0:00:02.6]} 41... Kg7 {[%clk 0:00:15.3]} 42.
Qe7 {[%clk 0:00:01.9]} 42... Qd6 {[%clk 0:00:14.8]} 43. Qxf7+ {[%clk 0:00:01.8]}
43... Kh6 {[%clk 0:00:15]} 44. Qh7# {[%clk 0:00:02.2]} 1-0

[Event "Early-Titled-Tuesday-Blitz-April-02-2024"]
[Site "Chess.com"]
[Date "2024.04.02"]
[Round "6"]
[White "Boxerandchessplayer"]
[Black "dianamirza"]
[Result "1-0"]
[WhiteElo "2206"]
[BlackElo "1967"]
[TimeControl "180+1"]
[EndTime "9:06:50 PDT"]
[Termination "Boxerandchessplayer won by checkmate"]

1. d4 {[%clk 0:02:41.4]} 1... Nf6 {[%clk 0:02:59.4]} 2. c4 {[%clk 0:02:28.8]}
2... c5 {[%clk 0:02:59.5]} 3. d5 {[%clk 0:02:28.6]} 3... b5 {[%clk 0:03:00.1]}
4. cxb5 {[%clk 0:02:28.5]} 4... a6 {[%clk 0:03:00.8]} 5. Nc3 {[%clk 0:02:27.5]}
5... g6 {[%clk 0:02:59.5]} 6. e4 {[%clk 0:02:27.8]} 6... d6 {[%clk 0:02:57]} 7.
h3 {[%clk 0:02:24.7]} 7... Bg7 {[%clk 0:02:56.8]} 8. Nf3 {[%clk 0:02:25.2]} 8...
O-O {[%clk 0:02:54]} 9. Qc2 {[%clk 0:02:25.5]} 9... Nbd7 {[%clk 0:02:52.8]} 10.
a4 {[%clk 0:02:25.2]} 10... axb5 {[%clk 0:02:40.7]} 11. Bxb5 {[%clk 0:02:19.7]}
11... Ba6 {[%clk 0:02:41]} 12. O-O {[%clk 0:01:52.1]} 12... Bxb5 {[%clk
0:02:38.4]} 13. Nxb5 {[%clk 0:01:52.8]} 13... Nb6 {[%clk 0:02:32.4]} 14. Nc3
{[%clk 0:01:50.4]} 14... Qc7 {[%clk 0:02:30.1]} 15. b3 {[%clk 0:01:30.5]} 15...
Nfd7 {[%clk 0:02:22.6]} 16. Bb2 {[%clk 0:01:28.7]} 16... c4 {[%clk 0:02:19.4]}
17. Nb5 {[%clk 0:01:14.8]} 17... Qc5 {[%clk 0:02:02.7]} 18. Bxg7 {[%clk
0:01:14.1]} 18... Kxg7 {[%clk 0:02:02.4]} 19. Qc3+ {[%clk 0:01:05.9]} 19... Kg8
{[%clk 0:02:00.8]} 20. b4 {[%clk 0:00:28.8]} 20... Qc8 {[%clk 0:01:55.1]} 21. a5
{[%clk 0:00:27.7]} 21... Qa6 {[%clk 0:01:48]} 22. Nc7 {[%clk 0:00:26.3]} 22...
Qb7 {[%clk 0:01:45.2]} 23. Nxa8 {[%clk 0:00:19.9]} 23... Nxa8 {[%clk 0:01:45]}
24. Qxc4 {[%clk 0:00:20.5]} 24... Rc8 {[%clk 0:01:41.7]} 25. Qd3 {[%clk
0:00:20.3]} 25... Nc7 {[%clk 0:01:40.5]} 26. Nd4 {[%clk 0:00:17]} 26... Ne5
{[%clk 0:01:40.4]} 27. Qb3 {[%clk 0:00:16.6]} 27... Rb8 {[%clk 0:01:36.3]} 28.
Rfb1 {[%clk 0:00:15.8]} 28... Na6 {[%clk 0:01:33.5]} 29. b5 {[%clk 0:00:13.6]}
29... Nc5 {[%clk 0:01:33.4]} 30. Qc2 {[%clk 0:00:14.2]} 30... Ned3 {[%clk
0:01:27.2]} 31. Nc6 {[%clk 0:00:13.7]} 31... Rc8 {[%clk 0:01:06.8]} 32. b6
{[%clk 0:00:13.3]} 32... Ne5 {[%clk 0:01:02.3]} 33. Nxe5 {[%clk 0:00:12.7]}
33... dxe5 {[%clk 0:01:03.2]} 34. Qe2 {[%clk 0:00:12.4]} 34... Na6 {[%clk
0:00:59.5]} 35. Rc1 {[%clk 0:00:12.7]} 35... Rd8 {[%clk 0:00:57.3]} 36. Qb5
{[%clk 0:00:11.3]} 36... Kg7 {[%clk 0:00:55.1]} 37. Rab1 {[%clk 0:00:09.6]}
37... f5 {[%clk 0:00:55.1]} 38. f3 {[%clk 0:00:07.9]} 38... fxe4 {[%clk
0:00:53.6]} 39. fxe4 {[%clk 0:00:08.8]} 39... Rd6 {[%clk 0:00:51.9]} 40. Rc6
{[%clk 0:00:08.8]} 40... Rd8 {[%clk 0:00:48.5]} 41. Qb2 {[%clk 0:00:07.9]} 41...
Rf8 {[%clk 0:00:46]} 42. Qxe5+ {[%clk 0:00:06.9]} 42... Kg8 {[%clk 0:00:44]} 43.
Rf1 {[%clk 0:00:07.5]} 43... Rxf1+ {[%clk 0:00:41.5]} 44. Kxf1 {[%clk
0:00:08.4]} 44... Nb4 {[%clk 0:00:38.3]} 45. Qe6+ {[%clk 0:00:08.9]} 45... Kf8
{[%clk 0:00:35.7]} 46. Rc8+ {[%clk 0:00:09.4]} 46... Kg7 {[%clk 0:00:35.9]} 47.
Rg8+ {[%clk 0:00:09.2]} 47... Kh6 {[%clk 0:00:36.3]} 48. Qg4 {[%clk 0:00:08.3]}
48... Qa6+ {[%clk 0:00:33.2]} 49. Kg1 {[%clk 0:00:08.8]} 49... g5 {[%clk
0:00:28.5]} 50. Qxg5# {[%clk 0:00:09.1]} 1-0

[Event "Early-Titled-Tuesday-Blitz-April-02-2024"]
[Site "Chess.com"]
[Date "2024.04.02"]
[Round "6"]
[White "LiamPutnam2008"]
[Black "CSB7"]
[Result "1/2-1/2"]
[WhiteElo "2922"]
[BlackElo "2781"]
[TimeControl "180+1"]
[EndTime "9:06:53 PDT"]
[Termination "Game drawn - insufficient material"]

1. Nf3 {[%clk 0:03:00.9]} 1... Nf6 {[%clk 0:02:50.7]} 2. g3 {[%clk 0:03:00.9]}
2... g6 {[%clk 0:02:48.5]} 3. Bg2 {[%clk 0:03:01.5]} 3... Bg7 {[%clk 0:02:49.2]}
4. O-O {[%clk 0:03:02.2]} 4... O-O {[%clk 0:02:50]} 5. b3 {[%clk 0:03:02.1]}
5... b6 {[%clk 0:02:48.3]} 6. Bb2 {[%clk 0:03:02.4]} 6... Bb7 {[%clk 0:02:49]}
7. c4 {[%clk 0:03:02.3]} 7... c5 {[%clk 0:02:48.3]} 8. Nc3 {[%clk 0:03:02.1]}
8... d5 {[%clk 0:02:46.8]} 9. cxd5 {[%clk 0:02:56.1]} 9... Nxd5 {[%clk
0:02:47.7]} 10. Rc1 {[%clk 0:02:56.1]} 10... Nc6 {[%clk 0:02:45.3]} 11. Qc2
{[%clk 0:02:49.4]} 11... Rc8 {[%clk 0:02:17.9]} 12. Nxd5 {[%clk 0:02:36.7]}
12... Qxd5 {[%clk 0:02:18.8]} 13. Ne5 {[%clk 0:02:36.1]} 13... Qxg2+ {[%clk
0:01:54.1]} 14. Kxg2 {[%clk 0:02:36.1]} 14... Nd4+ {[%clk 0:01:54]} 15. f3
{[%clk 0:02:29.4]} 15... Nxc2 {[%clk 0:01:51.2]} 16. Rxc2 {[%clk 0:02:30.3]}
16... Rfd8 {[%clk 0:01:44.1]} 17. Rfc1 {[%clk 0:02:28.3]} 17... Bh6 {[%clk
0:01:20.9]} 18. e3 {[%clk 0:02:24.3]} 18... f6 {[%clk 0:01:16.8]} 19. Ng4 {[%clk
0:02:24.1]} 19... Bg7 {[%clk 0:01:15.8]} 20. Nf2 {[%clk 0:02:23.3]} 20... e5
{[%clk 0:01:10.7]} 21. d4 {[%clk 0:02:16.6]} 21... exd4 {[%clk 0:00:32.5]} 22.
exd4 {[%clk 0:02:16.2]} 22... cxd4 {[%clk 0:00:33.3]} 23. Rxc8 {[%clk
0:02:17.1]} 23... Rxc8 {[%clk 0:00:33.3]} 24. Rxc8+ {[%clk 0:02:17.3]} 24...
Bxc8 {[%clk 0:00:34.2]} 25. Bxd4 {[%clk 0:02:18.1]} 25... Kf7 {[%clk 0:00:25.6]}
26. Ne4 {[%clk 0:02:16.4]} 26... Ke6 {[%clk 0:00:25.5]} 27. Kf2 {[%clk
0:02:14.3]} 27... h6 {[%clk 0:00:23.5]} 28. Ke3 {[%clk 0:02:13.6]} 28... Bb7
{[%clk 0:00:23.6]} 29. Nc3 {[%clk 0:02:10.9]} 29... Bc6 {[%clk 0:00:19.3]} 30.
Ne2 {[%clk 0:02:08.6]} 30... Bf8 {[%clk 0:00:18.8]} 31. Nf4+ {[%clk 0:02:07]}
31... Kf7 {[%clk 0:00:19.5]} 32. Nd3 {[%clk 0:02:05]} 32... g5 {[%clk
0:00:19.6]} 33. f4 {[%clk 0:02:03]} 33... Ke6 {[%clk 0:00:19.7]} 34. Bc3 {[%clk
0:01:56.7]} 34... Kf5 {[%clk 0:00:19.1]} 35. h3 {[%clk 0:01:53]} 35... h5 {[%clk
0:00:18]} 36. fxg5 {[%clk 0:01:51.9]} 36... fxg5 {[%clk 0:00:18.9]} 37. Nf2
{[%clk 0:01:51.6]} 37... Bc5+ {[%clk 0:00:18.2]} 38. Bd4 {[%clk 0:01:51.9]}
38... Bd6 {[%clk 0:00:13.1]} 39. g4+ {[%clk 0:01:52]} 39... hxg4 {[%clk
0:00:14]} 40. hxg4+ {[%clk 0:01:52.9]} 40... Ke6 {[%clk 0:00:12.2]} 41. Nh3
{[%clk 0:01:50]} 41... Be7 {[%clk 0:00:10.8]} 42. Bg7 {[%clk 0:01:45.5]} 42...
Kf7 {[%clk 0:00:10]} 43. Be5 {[%clk 0:01:43.9]} 43... Bd7 {[%clk 0:00:10.4]} 44.
Kf3 {[%clk 0:01:42.7]} 44... a6 {[%clk 0:00:06.8]} 45. Bd4 {[%clk 0:01:40.5]}
45... b5 {[%clk 0:00:06.7]} 46. Be3 {[%clk 0:01:41.2]} 46... Kg6 {[%clk
0:00:06.8]} 47. Nf2 {[%clk 0:01:39.8]} 47... Bc6+ {[%clk 0:00:06.5]} 48. Ne4
{[%clk 0:01:40.2]} 48... a5 {[%clk 0:00:05.2]} 49. Bd2 {[%clk 0:01:38.1]} 49...
a4 {[%clk 0:00:05.3]} 50. Ke3 {[%clk 0:01:33.1]} 50... axb3 {[%clk 0:00:05.3]}
51. axb3 {[%clk 0:01:34]} 51... Bd5 {[%clk 0:00:03.9]} 52. b4 {[%clk 0:01:34]}
52... Be6 {[%clk 0:00:04.5]} 53. Nf2 {[%clk 0:01:31.5]} 53... Kf7 {[%clk
0:00:03.7]} 54. Ke4 {[%clk 0:01:30.9]} 54... Bf6 {[%clk 0:00:03.5]} 55. Be3
{[%clk 0:01:28.2]} 55... Ke7 {[%clk 0:00:03.5]} 56. Bc5+ {[%clk 0:01:25.6]}
56... Kf7 {[%clk 0:00:04.1]} 57. Kf3 {[%clk 0:01:26]} 57... Bd5+ {[%clk
0:00:04]} 58. Ne4 {[%clk 0:01:25.9]} 58... Be5 {[%clk 0:00:02.5]} 59. Ke3 {[%clk
0:01:25]} 59... Bf4+ {[%clk 0:00:03.2]} 60. Kd4 {[%clk 0:01:25.1]} 60... Be6
{[%clk 0:00:03.9]} 61. Bd6 {[%clk 0:01:23.9]} 61... Bxg4 {[%clk 0:00:02.7]} 62.
Bxf4 {[%clk 0:01:19.4]} 62... gxf4 {[%clk 0:00:03.6]} 63. Nd6+ {[%clk
0:01:19.6]} 63... Ke6 {[%clk 0:00:03.4]} 64. Nxb5 {[%clk 0:01:20.5]} 64... f3
{[%clk 0:00:03.6]} 65. Ke3 {[%clk 0:01:19.1]} 65... Kd5 {[%clk 0:00:03.7]} 66.
Na3 {[%clk 0:01:14.9]} 66... Kc6 {[%clk 0:00:04]} 67. Kf2 {[%clk 0:01:14.4]}
67... Kb6 {[%clk 0:00:04.4]} 68. Ke3 {[%clk 0:01:14.9]} 68... Bh5 {[%clk
0:00:04.5]} 69. Kf2 {[%clk 0:01:09.6]} 69... Kc6 {[%clk 0:00:04.9]} 70. Kg3
{[%clk 0:01:09.9]} 70... Kb6 {[%clk 0:00:04.9]} 71. Nc4+ {[%clk 0:01:09.2]}
71... Kb5 {[%clk 0:00:05.1]} 72. Nd2 {[%clk 0:01:10]} 72... Kxb4 {[%clk
0:00:05.3]} 73. Nxf3 {[%clk 0:01:10.5]} 1/2-1/2

[Event "Early-Titled-Tuesday-Blitz-April-02-2024"]
[Site "Chess.com"]
[Date "2024.04.02"]
[Round "6"]
[White "vladgoncharov"]
[Black "AsaHoffmann"]
[Result "1-0"]
[WhiteElo "2575"]
[BlackElo "2396"]
[TimeControl "180+1"]
[EndTime "9:06:53 PDT"]
[Termination "vladgoncharov won on time"]

1. d4 {[%clk 0:03:00.1]} 1... Nf6 {[%clk 0:02:58.2]} 2. c4 {[%clk 0:02:58.1]}
2... c5 {[%clk 0:02:54.7]} 3. d5 {[%clk 0:02:56.1]} 3... e5 {[%clk 0:02:51.8]}
4. Nc3 {[%clk 0:02:55.6]} 4... d6 {[%clk 0:02:51.9]} 5. e4 {[%clk 0:02:54.9]}
5... Be7 {[%clk 0:02:51.9]} 6. Be2 {[%clk 0:02:50.4]} 6... Nbd7 {[%clk 0:02:51]}
7. Be3 {[%clk 0:02:47.2]} 7... Nf8 {[%clk 0:02:50.7]} 8. g3 {[%clk 0:02:42.6]}
8... h6 {[%clk 0:02:46.2]} 9. h4 {[%clk 0:02:40.8]} 9... a6 {[%clk 0:02:40.7]}
10. a3 {[%clk 0:02:39.1]} 10... Rb8 {[%clk 0:02:39.4]} 11. Rb1 {[%clk
0:02:37.5]} 11... Ng6 {[%clk 0:02:16.1]} 12. b4 {[%clk 0:02:32.4]} 12... cxb4
{[%clk 0:02:09.1]} 13. axb4 {[%clk 0:02:31.8]} 13... b6 {[%clk 0:02:08.9]} 14.
f3 {[%clk 0:02:21.7]} 14... Bd7 {[%clk 0:02:08.1]} 15. Kf2 {[%clk 0:02:20.8]}
15... Nh5 {[%clk 0:02:02.3]} 16. c5 {[%clk 0:02:09.1]} 16... Nxg3 {[%clk
0:01:53]} 17. Kxg3 {[%clk 0:02:04.3]} 17... Bxh4+ {[%clk 0:01:52.4]} 18. Kg2
{[%clk 0:02:04.6]} 18... Bg5 {[%clk 0:01:51.5]} 19. Qd2 {[%clk 0:01:54.5]} 19...
Bxe3 {[%clk 0:01:46.5]} 20. Qxe3 {[%clk 0:01:54]} 20... Nf4+ {[%clk 0:01:46.4]}
21. Kf1 {[%clk 0:01:36.1]} 21... Qg5 {[%clk 0:01:43.8]} 22. Rh2 {[%clk
0:01:30.5]} 22... bxc5 {[%clk 0:01:40.1]} 23. bxc5 {[%clk 0:01:22.9]} 23...
Rxb1+ {[%clk 0:01:38.2]} 24. Nxb1 {[%clk 0:01:22.7]} 24... dxc5 {[%clk
0:01:37.7]} 25. Qxc5 {[%clk 0:01:18.9]} 25... h5 {[%clk 0:01:14.3]} 26. Qd6
{[%clk 0:01:03.4]} 26... Rh6 {[%clk 0:01:10.7]} 27. Qb8+ {[%clk 0:01:01.6]}
27... Ke7 {[%clk 0:01:10.8]} 28. Nc3 {[%clk 0:00:55.8]} 28... Rg6 {[%clk
0:01:04.9]} 29. Qa7 {[%clk 0:00:47.5]} 29... h4 {[%clk 0:00:55.7]} 30. Qc5+
{[%clk 0:00:43.4]} 30... Ke8 {[%clk 0:00:52.2]} 31. Qa7 {[%clk 0:00:39.5]} 31...
h3 {[%clk 0:00:40.8]} 32. Bxa6 {[%clk 0:00:38.8]} 32... Rd6 {[%clk 0:00:27.1]}
33. Nb5 {[%clk 0:00:23.8]} 33... Rxa6 {[%clk 0:00:16.1]} 34. Qxa6 {[%clk
0:00:19.4]} 34... Qg3 {[%clk 0:00:15.5]} 35. Qa8+ {[%clk 0:00:16.5]} 35... Ke7
{[%clk 0:00:14.7]} 36. Qa3+ {[%clk 0:00:15.5]} 36... Kf6 {[%clk 0:00:13]} 37.
Qd6+ {[%clk 0:00:13.8]} 37... Be6 {[%clk 0:00:12.6]} 38. dxe6 {[%clk 0:00:12.4]}
38... Qxh2 {[%clk 0:00:10.4]} 39. e7+ {[%clk 0:00:12.6]} 39... Kg5 {[%clk
0:00:07.9]} 40. Qxe5+ {[%clk 0:00:12.9]} 40... Kh4 {[%clk 0:00:03.4]} 41. Qxf4+
{[%clk 0:00:10.6]} 41... Qxf4 {[%clk 0:00:02.7]} 42. e8=Q {[%clk 0:00:10.3]}
42... Qc1+ {[%clk 0:00:01.4]} 43. Ke2 {[%clk 0:00:10.6]} 1-0

[Event "Early-Titled-Tuesday-Blitz-April-02-2024"]
[Site "Chess.com"]
[Date "2024.04.02"]
[Round "6"]
[White "Balla_Tamas"]
[Black "enriquebutti"]
[Result "1-0"]
[WhiteElo "2468"]
[BlackElo "2206"]
[TimeControl "180+1"]
[EndTime "9:06:53 PDT"]
[Termination "Balla_Tamas won on time"]

1. Nf3 {[%clk 0:03:00.9]} 1... d5 {[%clk 0:02:57.8]} 2. b3 {[%clk 0:02:59.9]}
2... c5 {[%clk 0:02:53.9]} 3. Bb2 {[%clk 0:03:00.1]} 3... Nf6 {[%clk 0:02:52.8]}
4. e3 {[%clk 0:03:00.7]} 4... a6 {[%clk 0:02:52.4]} 5. c4 {[%clk 0:02:59.2]}
5... e6 {[%clk 0:02:49.6]} 6. cxd5 {[%clk 0:02:57.3]} 6... exd5 {[%clk 0:02:49]}
7. d4 {[%clk 0:02:57.8]} 7... Nc6 {[%clk 0:02:48.4]} 8. Be2 {[%clk 0:02:56.5]}
8... Bd6 {[%clk 0:02:42.5]} 9. dxc5 {[%clk 0:02:56.1]} 9... Bxc5 {[%clk
0:02:41.9]} 10. O-O {[%clk 0:02:56.4]} 10... O-O {[%clk 0:02:41.3]} 11. Nc3
{[%clk 0:02:56.8]} 11... Re8 {[%clk 0:02:40.4]} 12. Na4 {[%clk 0:02:57]} 12...
Bd6 {[%clk 0:02:34.6]} 13. Rc1 {[%clk 0:02:57.2]} 13... Ne4 {[%clk 0:02:32.5]}
14. Qc2 {[%clk 0:02:55.3]} 14... Bg4 {[%clk 0:02:24.4]} 15. h3 {[%clk
0:02:52.7]} 15... Bf5 {[%clk 0:02:17.8]} 16. Rfd1 {[%clk 0:02:28.2]} 16... Re6
{[%clk 0:01:57.9]} 17. Nd4 {[%clk 0:02:00]} 17... Nxd4 {[%clk 0:01:43.2]} 18.
Rxd4 {[%clk 0:02:00.9]} 18... Rg6 {[%clk 0:01:35.9]} 19. Bf3 {[%clk 0:01:50.2]}
19... Bxh3 {[%clk 0:01:21.8]} 20. Rxd5 {[%clk 0:01:50]} 20... Ng5 {[%clk
0:00:55.8]} 21. Bh5 {[%clk 0:01:12]} 21... Rh6 {[%clk 0:00:25.2]} 22. Qc3 {[%clk
0:01:01.5]} 22... f6 {[%clk 0:00:19.3]} 23. Qc4 {[%clk 0:00:56.8]} 23... Be6
{[%clk 0:00:16.3]} 24. Bg4 {[%clk 0:00:55.1]} 24... Bh2+ {[%clk 0:00:11.9]} 25.
Kf1 {[%clk 0:00:50.9]} 25... Bxd5 {[%clk 0:00:11.4]} 26. Qc5 {[%clk 0:00:43.2]}
26... Nf7 {[%clk 0:00:07.7]} 27. Nb6 {[%clk 0:00:42.6]} 27... Bd6 {[%clk
0:00:05.4]} 28. Qd4 {[%clk 0:00:28.2]} 28... Be5 {[%clk 0:00:04.4]} 29. Qxd5
{[%clk 0:00:12]} 29... Qxb6 {[%clk 0:00:03.9]} 30. Ba3 {[%clk 0:00:07.7]} 30...
Rd8 {[%clk 0:00:03.1]} 31. Qc4 {[%clk 0:00:06.8]} 31... Rh1+ {[%clk 0:00:01.7]}
32. Ke2 {[%clk 0:00:06.8]} 32... Rxc1 {[%clk 0:00:02.6]} 33. Be6 {[%clk
0:00:07.7]} 1-0

[Event "Early-Titled-Tuesday-Blitz-April-02-2024"]
[Site "Chess.com"]
[Date "2024.04.02"]
[Round "6"]
[White "guillembaches"]
[Black "VeraVujovic"]
[Result "1-0"]
[WhiteElo "2558"]
[BlackElo "2234"]
[TimeControl "180+1"]
[EndTime "9:06:57 PDT"]
[Termination "guillembaches won by checkmate"]

1. e4 {[%clk 0:03:00.9]} 1... e5 {[%clk 0:02:54.1]} 2. Nf3 {[%clk 0:03:01.2]}
2... Nc6 {[%clk 0:02:54.7]} 3. Nc3 {[%clk 0:03:01.9]} 3... Nf6 {[%clk
0:02:53.8]} 4. d4 {[%clk 0:03:02.5]} 4... exd4 {[%clk 0:02:47.3]} 5. Nxd4 {[%clk
0:03:03.4]} 5... Bc5 {[%clk 0:02:47.4]} 6. Nxc6 {[%clk 0:03:02.9]} 6... bxc6
{[%clk 0:02:47.2]} 7. Bd3 {[%clk 0:03:03]} 7... d5 {[%clk 0:02:43.6]} 8. O-O
{[%clk 0:02:52.6]} 8... O-O {[%clk 0:02:36.5]} 9. Bg5 {[%clk 0:02:45.1]} 9... h6
{[%clk 0:02:35.2]} 10. Bh4 {[%clk 0:02:39.3]} 10... Be7 {[%clk 0:02:33.3]} 11.
Qf3 {[%clk 0:02:27]} 11... Bg4 {[%clk 0:02:09.6]} 12. Qg3 {[%clk 0:02:12.2]}
12... Bh5 {[%clk 0:01:46.9]} 13. e5 {[%clk 0:01:52.5]} 13... Ne4 {[%clk
0:01:22.4]} 14. Bxe7 {[%clk 0:01:44.1]} 14... Nxg3 {[%clk 0:01:21.3]} 15. Bxd8
{[%clk 0:01:37.4]} 15... Nxf1 {[%clk 0:01:20.8]} 16. Bxc7 {[%clk 0:01:30.7]}
16... Nd2 {[%clk 0:01:20.4]} 17. f4 {[%clk 0:01:19.8]} 17... Rfe8 {[%clk
0:01:02.6]} 18. h3 {[%clk 0:01:08.8]} 18... f6 {[%clk 0:00:51.2]} 19. Re1 {[%clk
0:00:49.4]} 19... fxe5 {[%clk 0:00:40.5]} 20. Bxe5 {[%clk 0:00:48.7]} 20... Bf7
{[%clk 0:00:22.7]} 21. Na4 {[%clk 0:00:42.9]} 21... Nc4 {[%clk 0:00:13.4]} 22.
Bxc4 {[%clk 0:00:42.1]} 22... dxc4 {[%clk 0:00:14.3]} 23. Nc5 {[%clk 0:00:41.8]}
23... Rab8 {[%clk 0:00:11.6]} 24. Re3 {[%clk 0:00:37.9]} 24... Rb5 {[%clk
0:00:12.1]} 25. Na4 {[%clk 0:00:23.1]} 25... Bg6 {[%clk 0:00:07.1]} 26. Rg3
{[%clk 0:00:21.3]} 26... Re6 {[%clk 0:00:05.8]} 27. b3 {[%clk 0:00:21.1]} 27...
cxb3 {[%clk 0:00:05.3]} 28. cxb3 {[%clk 0:00:21.4]} 28... Rd5 {[%clk 0:00:05.2]}
29. Nc3 {[%clk 0:00:21.5]} 29... Rd2 {[%clk 0:00:05]} 30. h4 {[%clk 0:00:20.7]}
30... h5 {[%clk 0:00:04]} 31. Rg5 {[%clk 0:00:20.5]} 31... Kh7 {[%clk
0:00:03.7]} 32. Na4 {[%clk 0:00:20.4]} 32... Rxa2 {[%clk 0:00:03.7]} 33. Nc5
{[%clk 0:00:20.7]} 33... Re8 {[%clk 0:00:03.5]} 34. f5 {[%clk 0:00:20.7]} 34...
Rxe5 {[%clk 0:00:02.7]} 35. fxg6+ {[%clk 0:00:20.5]} 35... Kh6 {[%clk
0:00:03.2]} 36. Rxe5 {[%clk 0:00:20.9]} 36... Kxg6 {[%clk 0:00:03.9]} 37. Re3
{[%clk 0:00:20.7]} 37... Rc2 {[%clk 0:00:03.6]} 38. Ne4 {[%clk 0:00:20.3]} 38...
Rc1+ {[%clk 0:00:04.2]} 39. Kf2 {[%clk 0:00:20.1]} 39... Kf5 {[%clk 0:00:05.1]}
40. Ng3+ {[%clk 0:00:19.6]} 40... Kg6 {[%clk 0:00:03.8]} 41. Kf3 {[%clk
0:00:19.8]} 41... Rc2 {[%clk 0:00:03.4]} 42. Rd3 {[%clk 0:00:19.4]} 42... Kh6
{[%clk 0:00:03.2]} 43. Ne4 {[%clk 0:00:19.6]} 43... g6 {[%clk 0:00:03.5]} 44. g3
{[%clk 0:00:19.8]} 44... Rc1 {[%clk 0:00:03.5]} 45. Rd7 {[%clk 0:00:19.2]} 45...
Rc2 {[%clk 0:00:03.5]} 46. Ng5 {[%clk 0:00:18.8]} 46... Rb2 {[%clk 0:00:04.4]}
47. Rh7# {[%clk 0:00:17.9]} 1-0